bitfinex/quotes_SOLUSD_20251125
["timestamp","ask_amount","ask_price","bid_price","bid_amount"]
[1764086607272,14.89525479,135.13,135.07,6.77530987]
[1764086607273,3.3,135.13,135.09,6.08530987]
[1764086607475,3.3,135.13,135.09,67.88530987]
[1764086607688,3.3,135.13,135.1,0.69]
[1764086608172,3.3,135.13,135.11,7.40137665]
[1764086608350,3.3,135.13,135.11,13.48668652]
[1764086608552,12.20994492,135.16,135.11,32.68012816]
[1764086608763,12.87994492,135.16,135.11,32.68012816]
[1764086608958,12.20994492,135.16,135.12,0.69]
[1764086609173,4.07,135.16,135.12,0.69]
[1764086609374,3.4,135.16,135.12,6.77530987]
[1764086609746,3.4,135.16,135.13,0.69]
[1764086610287,0.1,135.16,135.15,6.08530987]
[1764086610650,0.1,135.16,135.15,6.77530987]
[1764086611063,3.5,135.19,135.15,6.77530987]
[1764086611372,3.5,135.19,135.16,0.69]
[1764086611577,3.5,135.19,135.15,6.77530987]
[1764086611877,4.17,135.19,135.15,0.69]
[1764086612253,4.17,135.19,135.14,68.98304553]
[1764086612454,3.5,135.19,135.14,62.89773566]
[1764086612650,8.80994492,135.17,135.14,7.3997336]
[1764086612861,6.08530987,135.15,135.13,7.40022721]
[1764086613177,18.19525479,135.14,135.1,18.50417134]
[1764086613345,6.75530987,135.13,135.1,18.50417134]
[1764086613546,6.75530987,135.12,135.09,7.40247242]
[1764086613766,6.08530987,135.11,135.09,7.40247242]
[1764086613960,0.67,135.11,135.09,7.40247242]
[1764086614478,0.67,135.11,135.08,18.50680454]
[1764086614978,0.67,135.15,135.09,6.77530987]
[1764086615301,0.87,135.19,135.14,6.08530987]
[1764086615656,17.178864,135.19,135.14,6.77530987]
[1764086615960,0.67,135.18,135.12,6.08530987]
[1764086616169,6.28530987,135.19,135.13,6.08530987]
[1764086616368,0.87,135.19,135.14,6.08530987]
[1764086616573,0.87,135.19,135.15,25.8971513]
[1764086616878,0.67,135.18,135.15,25.8971513]
[1764086617492,0.2,135.19,135.15,25.8971513]
[1764086617655,0.2,135.19,135.16,6.77530987]
[1764086617976,0.2,135.19,135.16,6.08530987]
[1764086618186,0.2,135.19,135.16,6.77530987]
[1764086618385,0.2,135.19,135.15,62.89308174]
[1764086618386,0.2,135.2,135.18,6.08530987]
[1764086618683,0.2,135.2,135.19,13.48230668]
[1764086619056,0.2,135.2,135.19,14.17230668]
[1764086619972,0.2,135.2,135.19,7.39699681]
[1764086620169,0.2,135.2,135.19,14.17230668]
[1764086620372,0.2,135.2,135.19,7.39699681]
[1764086620687,0.2,135.2,135.17,31.97733114]
[1764086620851,0.2,135.2,135.18,6.08530987]
[1764086621180,0.2,135.2,135.18,6.77530987]
[1764086621383,0.2,135.2,135.18,6.08530987]
[1764086622261,0.2,135.2,135.17,31.97733114]
[1764086622868,0.2,135.2,135.17,32.66733114]
[1764086623069,0.2,135.2,135.18,6.08530987]
[1764086623271,0.2,135.2,135.17,31.97733114]
[1764086623579,0.2,135.2,135.17,32.66733114]
[1764086624078,0.2,135.2,135.17,26.58202127]
[1764086624381,6.95530987,135.2,135.17,7.39809129]
[1764086624588,0.2,135.2,135.18,6.77530987]
[1764086624781,3.3,135.23,135.2,25.88757396]
[1764086624969,3.97,135.23,135.2,31.97288383]
[1764086625368,0.77,135.26,135.22,6.08530987]
[1764086626166,0.77,135.26,135.2,62.86982248]
[1764086626367,0.77,135.26,135.21,6.08530987]
[1764086626688,0.77,135.26,135.22,6.08530987]
[1764086626877,0.77,135.26,135.23,25.88183095]
[1764086627786,0.77,135.26,135.23,7.39480884]
[1764086628997,0.77,135.26,135.22,25.88308926]
[1764086629375,0.77,135.26,135.22,31.96839913]
[1764086629587,0.77,135.26,135.23,6.08530987]
[1764086629975,0.1,135.26,135.23,6.08530987]
[1764086630287,0.1,135.26,135.23,6.77530987]
[1764086630484,0.1,135.26,135.23,0.69]
[1764086630796,0.1,135.26,135.23,6.08530987]
[1764086631170,0.67,135.25,135.23,25.88183095]
[1764086631376,0.77,135.26,135.23,25.88183095]
[1764086631626,0.77,135.26,135.25,6.08530987]
[1764086631627,0.1,135.26,135.25,6.08530987]
[1764086632006,1e-08,135.26,135.25,6.77530987]
[1764086633080,1e-08,135.26,135.25,14.16902521]
[1764086633286,0.2,135.28,135.27,16.308864]
[1764086633287,1e-08,135.28,135.27,16.308864]
[1764086633495,1e-08,135.28,135.27,22.39417387]
[1764086633709,1e-08,135.28,135.27,23.05417387]
[1764086634216,1e-08,135.28,135.27,6.08530987]
[1764086634394,1e-08,135.28,135.26,6.08530987]
[1764086634594,1e-08,135.28,135.26,6.74530987]
[1764086634805,0.72000001,135.28,135.25,42.18686769]
[1764086635106,6.08530987,135.27,135.23,25.88158712]
[1764086635486,6.80530987,135.26,135.23,25.88158712]
[1764086636015,0.72,135.25,135.23,25.88158712]
[1764086636199,0.72,135.25,135.21,7.39570568]
[1764086636889,6.80530987,135.25,135.21,25.88546235]
[1764086637089,6.08530987,135.24,135.19,25.88948885]
[1764086637302,0.72,135.24,135.19,25.88948885]
[1764086637481,0.72,135.23,135.19,31.97479872]
[1764086637812,6.80530987,135.23,135.19,25.88948885]
[1764086637984,0.72,135.23,135.19,25.88948885]
[1764086638305,14.89525479,135.25,135.19,31.97479872]
[1764086638511,9.50994492,135.25,135.2,6.74530987]
[1764086638885,3.3,135.26,135.21,6.73530987]
[1764086639084,4.0,135.26,135.21,6.73530987]
[1764086639285,0.7,135.25,135.22,25.883745]
[1764086640207,0.7,135.25,135.22,7.39535571]
[1764086640385,6.78530987,135.25,135.22,7.39535571]
[1764086640590,0.7,135.25,135.22,7.39535571]
[1764086640791,0.7,135.25,135.22,25.883745]
[1764086640995,6.78530987,135.25,135.22,25.883745]
[1764086641207,0.7,135.25,135.22,25.883745]
[1764086641409,14.89525479,135.24,135.21,7.39590266]
[1764086641713,6.08530987,135.23,135.21,7.39590266]
[1764086641920,6.78530987,135.23,135.21,7.39590266]
[1764086642127,0.7,135.22,135.21,7.39590266]
[1764086642411,0.7,135.26,135.22,0.65]
[1764086642714,0.7,135.25,135.21,31.9709692]
[1764086643084,15.5952548,135.28,135.23,6.08530987]
[1764086643311,15.5952548,135.28,135.24,7.39426205]
[1764086643497,0.7,135.27,135.24,7.39426205]
[1764086643803,0.7,135.27,135.24,25.87991718]
[1764086644396,0.7,135.27,135.24,31.96522705]
[1764086644612,0.7,135.26,135.24,7.39426205]
[1764086645333,0.7,135.26,135.22,31.96826732]
[1764086646330,0.7,135.26,135.22,25.88295745]
[1764086647007,14.8952548,135.28,135.23,0.65]
[1764086647324,1e-08,135.28,135.25,25.87800369]
[1764086647505,1e-08,135.28,135.25,31.96331356]
[1764086648243,1e-08,135.28,135.26,0.65]
[1764086648455,1e-08,135.28,135.27,22.39417387]
[1764086648737,1e-08,135.28,135.27,16.308864]
[1764086649137,1e-08,135.28,135.25,35.26331356]
[1764086649326,1e-08,135.28,135.27,16.308864]
[1764086649861,1e-08,135.28,135.27,23.04417387]
[1764086650135,1e-08,135.28,135.27,16.308864]
[1764086651040,1e-08,135.28,135.27,22.39417387]
[1764086651413,1e-08,135.28,135.27,30.43679603]
[1764086651614,1e-08,135.28,135.27,33.73679603]
[1764086651950,1e-08,135.28,135.27,29.78679603]
[1764086653044,1e-08,135.28,135.27,23.70148616]
[1764086653257,1e-08,135.28,135.27,30.43679603]
[1764086653456,1e-08,135.28,135.27,29.78679603]
[1764086653821,1e-08,135.28,135.27,7.39262216]
[1764086653822,0.70000001,135.28,135.27,7.39262216]
[1764086654017,0.70000001,135.28,135.25,18.48428835]
[1764086654330,0.70000001,135.28,135.25,7.39371534]
[1764086654950,0.70000001,135.28,135.25,25.87800369]
[1764086656029,1e-08,135.28,135.27,6.08530987]
[1764086657724,1e-08,135.28,135.27,6.73530987]
[1764086658248,1e-08,135.28,135.27,14.12793203]
[1764086658452,1e-08,135.28,135.27,7.39262216]
[1764086658746,1e-08,135.28,135.27,14.12793203]
[1764086658953,1e-08,135.28,135.27,33.73679603]
[1764086659188,4.0,135.37,135.28,0.65]
[1764086659448,0.7,135.37,135.33,6.08530987]
[1764086659655,0.7,135.36,135.31,16.308864]
[1764086659825,0.7,135.36,135.31,22.39417387]
[1764086660134,0.7,135.36,135.32,6.08530987]
[1764086660318,0.7,135.36,135.33,25.86270597]
[1764086661141,10.08530987,135.39,135.34,6.08530987]
[1764086661655,0.7,135.38,135.35,6.08530987]
[1764086662255,0.7,135.38,135.36,7.38770685]
[1764086663271,14.89525479,135.37,135.33,25.86220851]
[1764086663658,0.69,135.36,135.33,25.86220851]
[1764086663866,6.77530987,135.36,135.33,25.86220851]
[1764086664255,0.69,135.35,135.33,25.86220851]
[1764086664945,10.19557839,135.35,135.33,7.38934456]
[1764086665160,21.61552331,135.34,135.32,7.38983498]
[1764086665472,12.79994492,135.34,135.32,7.38983498]
[1764086665656,10.19557839,135.33,135.28,25.87226492]
[1764086665850,18.31552331,135.32,135.28,25.87226492]
[1764086666051,9.50557839,135.31,135.28,25.87226492]
[1764086666253,10.19557839,135.31,135.28,25.87226492]
[1764086666451,0.69,135.3,135.28,18.48018923]
[1764086666645,0.69,135.33,135.29,9.50557839]
[1764086666872,3.3,135.34,135.31,9.50557839]
[1764086667046,0.69,135.36,135.32,9.50557839]
[1764086667250,0.69,135.36,135.33,9.50557839]
[1764086667554,0.69,135.36,135.34,9.50557839]
[1764086667759,8.80994492,135.38,135.34,9.50557839]
[1764086668056,0.69,135.36,135.33,9.50557839]
[1764086668980,9.49994492,135.38,135.34,25.86079503]
[1764086669149,0.69,135.37,135.34,25.86079503]
[1764086670075,0.69,135.37,135.34,35.36637342]
[1764086670249,0.69,135.37,135.34,25.86079503]
[1764086670570,10.19557839,135.37,135.34,7.38879858]
[1764086670762,9.50557839,135.36,135.34,7.38879858]
[1764086670969,0.69,135.36,135.33,18.47257903]
[1764086671163,0.69,135.35,135.33,18.47257903]
[1764086671690,9.50557839,135.38,135.33,27.97815742]
[1764086671691,0.69,135.38,135.33,27.97815742]
[1764086671989,0.69,135.37,135.34,9.50557839]
[1764086672150,0.69,135.37,135.33,27.97815742]
[1764086672345,0.69,135.37,135.35,10.68956961]
[1764086672654,19.49951453,135.36,135.32,7.38989062]
[1764086673181,0.69,135.35,135.32,7.38989062]
[1764086673563,0.69,135.35,135.32,25.86461719]
[1764086674254,0.69,135.35,135.32,7.38989062]
[1764086674984,3.3,135.34,135.31,25.8665287]
[1764086675148,3.3,135.34,135.33,10.68956961]
[1764086675347,3.99,135.34,135.33,10.68956961]
[1764086675557,3.3,135.34,135.33,10.68956961]
[1764086675756,3.3,135.34,135.32,10.68956961]
[1764086676178,3.3,135.34,135.33,10.68956961]
[1764086676389,3.99,135.37,135.33,10.68956961]
[1764086676585,3.99,135.37,135.34,10.68956961]
[1764086677084,0.69,135.36,135.35,7.38825267]
[1764086677862,3.3,135.37,135.35,7.38825267]
[1764086678062,3.99,135.37,135.35,7.38825267]
[1764086678296,3.3,135.37,135.35,18.07782228]
[1764086678491,0.69,135.39,135.36,10.68956961]
[1764086678678,0.69,135.39,135.35,25.85888436]
[1764086678679,0.69,135.39,135.37,10.68956961]
[1764086679183,9.49994492,135.39,135.38,7.38661545]
[1764086679693,3.5,135.4,135.38,18.07618506]
[1764086680068,4.19,135.4,135.38,7.38661545]
[1764086680688,8.80994492,135.39,135.35,25.85852063]
[1764086680888,8.80994492,135.37,135.35,7.38825267]
[1764086681073,8.80994492,135.37,135.33,25.86193007]
[1764086681272,0.69,135.36,135.33,25.86193007]
[1764086681587,8.80994492,135.35,135.33,25.86193007]
[1764086681972,9.49994492,135.35,135.33,25.86193007]
[1764086682688,9.49994492,135.35,135.33,10.68956961]
[1764086683791,9.49994492,135.35,135.34,7.38879858]
[1764086684099,0.69,135.34,135.31,36.55609831]
[1764086684683,8.80994492,135.35,135.31,36.55609831]
[1764086684887,9.49994492,135.35,135.31,36.55609831]
[1764086685493,9.49994492,135.35,135.32,10.68956961]
[1764086685879,9.49994492,135.35,135.33,7.38934456]
[1764086686069,0.69,135.34,135.33,7.38934456]
[1764086686394,8.80994492,135.33,135.3,7.39065348]
[1764086686584,8.80994492,135.31,135.3,7.39065348]
[1764086686970,9.49994492,135.31,135.3,7.39065348]
[1764086687374,3.3,135.32,135.3,25.86811098]
[1764086687569,9.49994492,135.34,135.3,36.55768059]
[1764086687782,3.3,135.33,135.28,18.4798415]
[1764086687979,3.99,135.33,135.28,29.16941111]
[1764086688278,8.80994492,135.31,135.28,29.16941111]
[1764086688686,9.49994492,135.31,135.28,29.16941111]
[1764086688900,8.80994492,135.29,135.27,7.39262216]
[1764086689223,8.80994492,135.29,135.27,18.08219177]
[1764086689383,8.80994492,135.29,135.27,36.56374717]
[1764086689587,8.80994492,135.29,135.28,10.68956961]
[1764086689996,8.80994492,135.29,135.28,18.0816453]
[1764086690201,3.99,135.29,135.26,18.08273832]
[1764086690505,3.99,135.29,135.26,36.5656601]
[1764086690876,3.99,135.29,135.27,10.68956961]
[1764086691296,3.3,135.29,135.27,10.68956961]
[1764086692001,3.3,135.29,135.28,7.39207569]
[1764086692413,3.3,135.29,135.26,18.08235704]
[1764086692713,20.18951453,135.28,135.23,45.48545572]
[1764086692915,9.49994492,135.28,135.24,10.68956961]
[1764086693476,9.49994492,135.28,135.25,10.68956961]
[1764086693683,8.80994492,135.28,135.26,10.68956961]
[1764086694106,8.80994492,135.28,135.27,7.39262216]
[1764086694612,3.96,135.29,135.26,18.08265041]
[1764086695405,3.96,135.29,135.26,36.56557219]
[1764086695914,0.66,135.28,135.26,25.87600258]
[1764086697828,3.3,135.29,135.26,25.87600258]
[1764086698113,3.96,135.29,135.26,36.56557219]
[1764086699092,0.69,135.28,135.26,36.56557219]
[1764086700114,0.69,135.28,135.26,25.87600258]
[1764086700286,3.3,135.29,135.26,18.78265041]
[1764086700491,3.3,135.29,135.27,10.68956961]
[1764086700692,8.80994492,135.32,135.28,10.68956961]
[1764086700892,8.80994492,135.32,135.3,10.68956961]
[1764086701114,8.80994492,135.32,135.27,10.68956961]
[1764086701293,19.49951453,135.32,135.26,10.68956961]
[1764086701502,0.69,135.31,135.26,10.68956961]
[1764086701703,0.69,135.31,135.27,10.68956961]
[1764086702016,0.69,135.31,135.25,25.87800369]
[1764086702017,10.68956961,135.3,135.25,7.39371534]
[1764086702218,8.80994492,135.3,135.27,10.68956961]
[1764086702419,0.69,135.29,135.26,10.68956961]
[1764086702635,8.80994492,135.28,135.25,36.5675733]
[1764086702805,12.10994492,135.28,135.25,25.87800369]
[1764086702998,3.99,135.28,135.25,29.17385796]
[1764086703916,3.3,135.28,135.25,19.18428835]
[1764086704096,3.3,135.28,135.27,10.68956961]
[1764086704296,8.80994492,135.3,135.27,10.68956961]
[1764086704499,0.69,135.29,135.25,29.17385796]
[1764086705827,10.68956961,135.26,135.19,7.39699681]
[1764086706012,8.08157111,135.29,135.19,7.39699681]
[1764086706013,8.80994492,135.23,135.19,7.39699681]
[1764086706318,12.10994492,135.23,135.19,36.57905846]
[1764086706532,3.3,135.23,135.2,10.68956961]
[1764086706699,3.3,135.23,135.21,10.68956961]
[1764086707301,0.69,135.22,135.19,25.88948885]
[1764086707601,3.99,135.23,135.2,10.68956961]
[1764086708228,0.69,135.22,135.18,10.68956961]
[1764086708398,19.49951453,135.21,135.16,25.99504232]
[1764086708602,8.80994492,135.19,135.16,7.49853523]
[1764086708900,8.80994492,135.17,135.16,0.1]
[1764086709302,9.49994492,135.17,135.16,0.1]
[1764086710237,43.89701624,135.17,135.11,0.1]
[1764086710536,8.80994492,135.13,135.11,0.1]
[1764086710732,12.10994492,135.12,135.11,0.1]
[1764086711031,12.79994492,135.12,135.11,0.1]
[1764086711398,23.48951453,135.12,135.11,0.1]
[1764086711916,12.79994492,135.12,135.11,0.1]
[1764086712897,3.99,135.12,135.11,0.1]
[1764086714716,14.67956961,135.12,135.11,0.1]
[1764086715827,8.80994492,135.11,135.1,0.1]
[1764086716142,20.18951453,135.11,135.1,0.1]
[1764086716443,8.80994492,135.07,135.02,7.50611978]
[1764086716615,19.49951453,135.05,135.02,0.1]
[1764086716932,13.98956961,135.06,135.02,0.1]
[1764086717131,8.80994492,135.05,135.02,0.1]
[1764086717336,12.79994492,135.05,135.02,0.1]
[1764086717844,8.80994492,135.03,135.02,0.1]
[1764086718316,8.80994492,135.04,135.02,0.1]
[1764086718521,3.3,135.05,135.02,0.8]
[1764086718701,26.99843361,135.07,135.02,0.8]
[1764086718905,3.3,135.06,135.02,11.48956961]
[1764086719116,20.18951453,135.08,135.03,10.68956961]
[1764086719117,3.3,135.05,135.03,10.68956961]
[1764086719313,8.80994492,135.04,135.02,0.1]
[1764086719511,9.49994492,135.04,135.02,0.1]
[1764086719713,8.80994492,135.04,135.02,0.1]
[1764086719904,3.3,135.05,135.02,0.1]
[1764086720104,3.3,135.05,135.02,0.8]
[1764086720309,8.80994492,135.06,135.02,0.8]
[1764086720310,8.80994492,135.06,135.03,7.40576168]
[1764086720513,16.308864,135.09,135.05,10.68956961]
[1764086720514,3.3,135.09,135.05,10.68956961]
[1764086720730,3.3,135.09,135.06,10.68956961]
[1764086720932,3.3,135.09,135.07,10.68956961]
[1764086721426,3.3,135.09,135.07,11.38956961]
[1764086721737,3.3,135.09,135.07,0.7]
[1764086721921,3.3,135.09,135.07,11.38956961]
[1764086722432,3.3,135.09,135.08,7.40302043]
[1764086723135,3.3,135.09,135.07,7.40342953]
[1764086724028,3.99,135.09,135.06,7.40411668]
[1764086724415,3.99,135.09,135.05,7.40449357]
[1764086724733,3.99,135.09,135.04,18.76476572]
[1764086724927,3.3,135.09,135.05,11.35956961]
[1764086725228,8.80994492,135.08,135.04,0.67]
[1764086725429,8.80994492,135.06,135.03,7.40547877]
[1764086725618,3.3,135.05,135.03,8.07547877]
[1764086725803,3.3,135.05,135.03,18.76504838]
[1764086726632,3.3,135.05,135.03,14.92949291]
[1764086727235,3.3,135.05,135.03,7.40547877]
[1764086727921,3.3,135.05,135.03,8.07547877]
[1764086728121,3.3,135.05,135.04,6.85401414]
[1764086728323,3.3,135.07,135.04,7.52401414]
[1764086728534,0.69,135.12,135.06,6.85401414]
[1764086728734,3.3,135.11,135.08,6.85401414]
[1764086728920,3.3,135.11,135.1,6.85401414]
[1764086729122,3.3,135.11,135.1,7.4019245]
[1764086729524,3.3,135.11,135.07,14.25758266]
[1764086729525,12.79994492,135.11,135.07,14.25758266]
[1764086729840,12.10994492,135.11,135.08,6.85401414]
[1764086730034,12.10994492,135.11,135.08,7.52401414]
[1764086730631,12.79994492,135.11,135.07,32.76650396]
[1764086730830,12.10994492,135.11,135.07,33.43650396]
[1764086731540,12.79994492,135.11,135.07,33.43650396]
[1764086732428,12.10994492,135.11,135.08,7.52401414]
[1764086732632,3.3,135.11,135.09,6.85401414]
[1764086732838,3.3,135.11,135.09,7.52401414]
[1764086733342,3.3,135.11,135.1,7.4019245]
[1764086733539,3.3,135.11,135.09,7.40225701]
[1764086733736,0.69,135.1,135.07,14.25732236]
[1764086733936,0.69,135.1,135.07,32.76624366]
[1764086734261,0.69,135.1,135.07,25.91222952]
[1764086734429,8.80994492,135.09,135.07,7.40330822]
[1764086737039,9.49994492,135.09,135.07,7.40330822]
[1764086737216,8.80994492,135.07,135.02,0.77]
[1764086737418,3.3,135.06,135.04,6.85401414]
[1764086738147,3.3,135.06,135.04,7.52401414]
[1764086738550,3.3,135.06,135.05,7.52401414]
[1764086739352,3.3,135.08,135.06,7.40411668]
[1764086739532,3.3,135.08,135.06,14.25813082]
[1764086740453,3.3,135.1,135.07,7.52401414]
[1764086740748,3.3,135.1,135.08,6.85401414]
[1764086740950,3.3,135.1,135.08,7.52401414]
[1764086741156,3.3,135.1,135.09,6.85401414]
[1764086741535,3.3,135.1,135.09,14.25648656]
[1764086741953,6.85401414,135.14,135.09,14.25648656]
[1764086741954,0.69,135.16,135.09,70.44502974]
[1764086742150,12.79994492,135.15,135.11,6.85401414]
[1764086742452,0.69,135.14,135.1,6.85401414]
[1764086742653,8.80994492,135.15,135.11,6.85401414]
[1764086742828,0.69,135.17,135.13,6.85401414]
[1764086743033,3.3,135.16,135.14,6.85401414]
[1764086743454,3.3,135.16,135.15,7.39918608]
[1764086745545,3.99,135.16,135.14,7.3997336]
[1764086746144,3.99,135.16,135.13,7.4001008]
[1764086746472,3.99,135.16,135.13,25.90080382]
[1764086746978,3.99,135.16,135.13,32.75481796]
[1764086747475,3.3,135.16,135.13,25.90080382]
[1764086747776,0.69,135.15,135.13,7.4001008]
[1764086748134,8.80994492,135.14,135.13,7.4001008]
[1764086748538,9.49994492,135.14,135.13,7.4001008]
[1764086749673,9.49994492,135.14,135.11,7.40137665]
[1764086750472,9.49994492,135.14,135.11,25.90481829]
[1764086750670,8.80994492,135.12,135.1,7.40170952]
[1764086750973,3.3,135.11,135.1,7.40170952]
[1764086752065,3.3,135.11,135.1,6.85401414]
[1764086752452,3.3,135.11,135.09,25.9077879]
[1764086752651,3.3,135.11,135.1,6.85401414]
[1764086753866,3.3,135.11,135.09,33.43180204]
[1764086754055,3.3,135.11,135.09,33.46180204]
[1764086756803,3.3,135.11,135.09,32.76180204]
[1764086757077,3.3,135.11,135.07,76.75731436]
[1764086757246,3.3,135.11,135.07,95.26623566]
[1764086757448,9.48994492,135.1,135.07,32.76623566]
[1764086757778,9.48994492,135.1,135.07,7.40330022]
[1764086757979,0.68,135.09,135.07,7.40330022]
[1764086758178,8.80994492,135.1,135.07,7.40330022]
[1764086758365,9.48994492,135.1,135.07,7.40330022]
[1764086758553,9.48994492,135.1,135.07,25.91222152]
[1764086758878,0.68,135.09,135.07,7.40330022]
[1764086759358,8.80994492,135.1,135.07,7.40330022]
[1764086759552,0.68,135.09,135.07,7.40330022]
[1764086759765,8.80994492,135.1,135.07,14.95731436]
[1764086759957,8.80994492,135.1,135.07,8.10330022]
[1764086760377,0.68,135.09,135.07,7.40330022]
[1764086760683,8.80994492,135.08,135.06,7.40387682]
[1764086760881,3.3,135.07,135.06,7.40387682]
[1764086761981,8.80994492,135.06,135.02,0.1]
[1764086762182,15.66395906,135.04,135.02,0.1]
[1764086762356,12.10994492,135.03,135.02,0.1]
[1764086762557,8.80994492,135.02,134.97,0.1]
[1764086762770,15.66395906,134.98,134.97,0.1]
[1764086762980,3.3,134.98,134.97,0.8]
[1764086763477,3.3,134.98,134.97,8.20905386]
[1764086763696,3.3,134.98,134.97,15.063068]
[1764086764657,3.3,135.02,134.97,33.58570265]
[1764086764875,3.3,135.02,134.99,6.85401414]
[1764086765272,3.3,135.02,135.0,0.7]
[1764086765782,3.3,135.02,134.99,6.85401414]
[1764086765974,3.3,135.02,134.97,33.58570265]
[1764086766180,3.3,135.02,134.98,7.55401414]
[1764086766478,3.3,135.02,135.0,7.4074074]
[1764086767253,16.34395906,135.01,134.97,0.1]
[1764086767461,6.85401414,135.04,134.98,6.85401414]
[1764086767462,7.53401414,135.04,134.98,6.85401414]
[1764086767659,8.80994492,135.02,134.98,6.85401414]
[1764086767859,3.3,135.03,134.98,6.85401414]
[1764086768086,3.3,135.03,134.99,7.55401414]
[1764086768293,3.3,135.03,134.99,0.7]
[1764086768690,9.48994492,135.02,135.0,7.4074074]
[1764086769079,9.48994492,135.02,134.99,7.40784394]
[1764086769672,9.48994492,135.02,134.98,7.40827627]
[1764086769673,0.68,135.01,134.98,7.40827627]
[1764086770081,7.53401414,135.01,134.98,7.40827627]
[1764086770294,7.53401414,135.01,134.97,7.50887373]
[1764086770496,8.80994492,134.99,134.97,7.50887373]
[1764086770705,12.10994492,134.98,134.97,7.50887373]
[1764086770876,3.3,134.98,134.97,6.95401414]
[1764086771083,3.3,134.98,134.97,0.1]
[1764086771483,12.78994492,134.98,134.97,0.1]
[1764086772285,19.64395906,134.98,134.97,0.1]
[1764086772800,27.05246402,134.98,134.97,0.1]
[1764086772986,43.36132802,134.98,134.97,0.1]
[1764086773681,27.05246402,134.98,134.97,0.1]
[1764086775417,19.64395906,134.98,134.97,0.1]
[1764086775782,27.05246402,134.98,134.97,0.1]
[1764086776283,16.308864,134.95,134.93,0.1]
[1764086776599,18.96395906,134.94,134.93,0.1]
[1764086776805,27.05466011,134.94,134.93,0.1]
[1764086777988,20.20064597,134.94,134.93,0.1]
[1764086778186,35.95282306,134.94,134.93,0.1]
[1764086778502,32.65282306,134.94,134.93,0.1]
[1764086778701,35.95282306,134.94,134.93,0.1]
[1764086779797,43.36352411,134.94,134.93,0.1]
[1764086780000,35.95282306,134.94,134.93,0.1]
[1764086780395,43.36352411,134.94,134.93,0.1]
[1764086780708,35.95282306,134.94,134.93,0.1]
[1764086780903,43.36352411,134.94,134.93,0.1]
[1764086781210,35.95282306,134.94,134.93,0.1]
[1764086781594,28.41880892,134.94,134.93,0.1]
[1764086781790,35.95282306,134.94,134.93,0.1]
[1764086782402,28.41880892,134.94,134.93,0.1]
[1764086782599,35.95282306,134.94,134.93,0.1]
[1764086784119,6.85401414,134.95,134.93,0.1]
[1764086784408,35.27282306,134.94,134.93,0.1]
[1764086784620,28.41880892,134.94,134.93,0.1]
[1764086784791,35.27282306,134.94,134.93,0.1]
[1764086785295,35.95282306,134.94,134.93,0.1]
[1764086785598,35.27282306,134.94,134.93,0.1]
[1764086786717,35.95282306,134.94,134.93,0.1]
[1764086787014,43.36352411,134.94,134.93,0.1]
[1764086788505,47.27583706,134.94,134.93,0.1]
[1764086789107,30.96697306,134.94,134.93,0.1]
[1764086790922,20.20064597,134.94,134.93,0.1]
[1764086791103,30.96697306,134.94,134.93,0.1]
[1764086791802,30.96697306,134.94,134.92,0.1]
[1764086792009,9.48994492,134.93,134.92,0.1]
[1764086792406,30.96752228,134.93,134.92,0.1]
[1764086793037,39.86513601,134.93,134.92,0.1]
[1764086793631,47.27638628,134.93,134.92,0.1]
[1764086794356,39.86513601,134.93,134.92,0.1]
[1764086794899,47.27638628,134.93,134.92,0.1]
[1764086795313,30.96752228,134.93,134.92,0.1]
[1764086795801,20.20119519,134.93,134.92,0.1]
[1764086796027,30.96752228,134.93,134.92,0.1]
[1764086796322,16.90119519,134.93,134.92,0.1]
[1764086796525,30.96752228,134.93,134.92,0.1]
[1764086797517,25.11880892,134.91,134.9,0.1]
[1764086797830,39.18513601,134.91,134.9,0.1]
[1764086797999,39.18513601,134.91,134.86,0.81]